Cogmind - Beta 11 @@@ ROGUE MODE // 2022.03.23 @ 22:09:59 Player: aperiodic Result: Destroyed by Enhanced Grunt with Neutron Cannon Performance ------------- Evolutions (4) 2000 Regions Visited (15) 3000 Robots Destroyed (240) 1200 Value Destroyed (8157) 8157 Prototype IDs (218) 4360 Alien Tech Used (0) 0 Bonus (4772) 4772 TOTAL SCORE: 23489 Bonus ------- High Alert Combat Kills 449 Follower Combat Kills 772 Met Data Miner 300 Used Data Conduit 3000 Met Imprinter 300 Was Imprinted 300 Friendly Fire -349 Cogmind --------- Core Integrity 0/850 Matter 207/300 Energy 21/100 System Corruption 0% Temperature Cool (0) Movement Core (50) Location -6/Data Miner Parts ------- > --- POWER (1) -------- (None) > --- PROPULSION (4) --- (None) > --- UTILITY (7) ------ Advanced Visual Processing Unit > --- WEAPON (3) ------- (None) > --- INVENTORY (5) ---- Hacking Drone Bay (1/1) Plasma Cutter Molecular Deconstructor Peak State ------------ > --- POWER ------------ F-cell Engine > --- PROPULSION ------- Medium Treads Improved Medium Treads Compact Wheel Compact Wheel > --- UTILITY ---------- Improved Cooling System High-capacity Storage Unit Advanced Visual Processing Unit Advanced Targeting Computer Advanced Targeting Computer Improved Medium Armor Plating Drone Bay > --- WEAPON ----------- Cooled Pulse Rifle High-powered Field Laser Improved Spread Laser > --- INVENTORY -------- Coolant Injector High-capacity Matter Pod Advanced Terrain Scan Processor Insulated Plating Improved Shield Generator System Restoration Module System Restoration Module Hacking Drone Bay Improved Lightning Gun Heavy Assault Cannon Heavy Flak Cannon Advanced EMP Blaster Rocket Array Dirty Datajack Plasma Cutter Molecular Deconstructor Spear GAL Module [Rating: 64] Favorites ----------- Power Heavy Ion Engine Engine Heavy Ion Engine Power Core Micro Fission Core Reactor Light Antimatter Reactor Propulsion Medium Treads Treads Medium Treads Wheel Compact Wheel Utility Advanced Targeting Computer Device Cooling System Storage High-capacity Storage Unit Processor Advanced Targeting Computer Hackware Hacking Suite Protection Improved Medium Armor Plating Weapon Advanced Beam Rifle Energy Gun Advanced Beam Rifle Energy Cannon Advanced Beam Cannon Ballistic Gun Heavy Assault Rifle Ballistic Cannon Flak Cannon Launcher Advanced EMP Blaster Special Weapon Mining Laser Piercing Weapon Spear Special Melee Weapon Dirty Datajack Build | -11 -10 -10 -9 -9 -8 -8 -7 -7 -7 -7 -6 -6 -6 -6 -6 ------- Run | Scr Mat Min Mat Min Mat Sto Fac Low Low Zio Pro Fac Low Low Dat Slots Evolved 8 | . . . 2 . 2 . 2 . . . . 2 . . . Power . | . . . . . . . . . . . . . . . . Propulsion 2 | . . . . . 1 . . . . . . 1 . . . Utility 5 | . . . 1 . 1 . 2 . . . . 1 . . . Weapon 1 | . . . 1 . . . . . . . . . . . . Parts Attached 205 | 7 11 . 18 9 45 26 18 6 . 5 14 17 11 7 11 Power 10 | 1 . . 1 . 2 1 1 . . . 2 2 . . . Engine 8 | 1 . . 1 . 2 1 1 . . . . 2 . . . Core 1 | . . . . . . . . . . . 1 . . . . Reactor 1 | . . . . . . . . . . . 1 . . . . Propulsion 42 | 3 5 . 7 2 8 4 2 1 . . 4 4 2 . . Treads 31 | . 2 . 7 2 6 4 2 1 . . 4 1 2 . . Leg . | . . . . . . . . . . . . . . . . Wheel 11 | 3 3 . . . 2 . . . . . . 3 . . . Hover . | . . . . . . . . . . . . . . . . Flight . | . . . . . . . . . . . . . . . . Utility 63 | 1 2 . 2 1 15 8 5 5 . 2 2 7 8 4 1 Device 36 | . 1 . . . 10 4 1 2 . 1 1 4 8 4 . Storage 3 | 1 1 . . . 1 . . . . . . . . . . Processor 4 | . . . . . 1 1 1 . . . . 1 . . . Hackware 2 | . . . . . . 2 . . . . . . . . . Protection 18 | . . . 2 1 3 1 3 3 . 1 1 2 . . 1 Artifact . | . . . . . . . . . . . . . . . . Weapon 90 | 2 4 . 8 6 20 13 10 . . 3 6 4 1 3 10 Energy Gun 27 | . 2 . 2 . 1 3 7 . . 2 1 3 . 2 4 Energy Cannon 1 | . . . . . 1 . . . . . . . . . . Ballistic Gun 17 | 2 1 . 5 4 3 1 1 . . . . . . . . Ballistic Cannon 25 | . . . . 1 10 8 1 . . . 2 . 1 . 2 Launcher 12 | . . . . 1 2 1 1 . . 1 3 1 . . 2 Special Weapon 5 | . 1 . 1 . 3 . . . . . . . . . . Impact Weapon . | . . . . . . . . . . . . . . . . Slashing Weapon . | . . . . . . . . . . . . . . . . Piercing Weapon 2 | . . . . . . . . . . . . . . 1 1 Special Melee Weapon 1 | . . . . . . . . . . . . . . . 1 Unidentified Prototypes 12 | . . . 1 . 1 4 1 . . 2 . 3 . . . Corrupted Parts 1 | . . . . . . . . . . . 1 . . . . System Corruption 10 | . . . . . . . . . . . 10 . . . . Parts Lost 51 | . 3 . . 6 8 . 1 2 . . 8 5 . . 18 Power 4 | . . . . . 1 . . . . . 2 . . . 1 Propulsion 18 | . 2 . . 1 3 . 1 . . . 3 4 . . 4 Utility 13 | . . . . 2 1 . . 2 . . 2 1 . . 5 Weapon 16 | . 1 . . 3 3 . . . . . 1 . . . 8 Highest Loss Streak 18 | . 1 . . 6 4 . 1 1 . . 3 2 . . 18 To Critical Strikes . | . . . . . . . . . . . . . . . . Average Slot Usage (%) 94 | . 92 100 99 93 92 92 92 99 100 100 94 85 95 98 87 Engine 7 | . 14 14 11 11 8 9 7 7 7 7 1 5 6 6 5 Treads 20 | . 13 28 22 21 24 27 23 22 23 23 22 14 4 13 10 Wheel 3 | . 13 . . . 1 . . . . . . 6 17 13 11 Device 7 | . 8 14 9 . 8 3 7 7 7 7 7 8 13 13 10 Storage 8 | . 14 14 11 11 9 9 7 7 7 7 7 6 6 6 5 Processor 12 | . . . . . 8 11 17 23 23 23 19 20 20 20 19 Protection 6 | . . . 11 16 7 1 6 6 7 6 7 6 6 6 4 Energy Gun 11 | . 16 28 5 . . . 12 23 23 23 17 5 18 15 10 Ballistic Gun 6 | . 11 . 25 32 3 . 2 . . . . . . . . Ballistic Cannon 5 | . . . . . 19 21 5 . . . 3 8 . 1 . Naked Turns . | . . . . . . . . . . . . . . . . Heaviest Build 93 | 12 32 32 43 46 76 76 87 66 64 64 87 93 81 83 75 Greatest Support 99 | 26 40 40 40 43 76 76 76 68 68 68 76 99 48 32 32 Greatest Overweight (x) 3 | 1 1 . 1 1 3 . 1 . . . 2 2 2 2 2 Average Overweight (x) . | . . . . 1 . . . . . . . . 1 2 1 Largest Inventory Capacity 20 | 8 15 15 15 15 20 20 20 20 20 20 20 20 20 20 20 Average Capacity 18 | 7 10 15 15 15 18 20 20 20 20 20 20 20 20 20 19 Most Carried 20 | 3 15 15 15 15 20 20 20 20 18 20 20 20 20 20 20 Average Carried 16 | 1 8 14 14 11 16 19 17 19 18 19 19 17 19 19 18 Final Capacity 20 | 8 15 15 15 15 20 20 20 20 20 20 20 20 20 20 5 Final Carried 20 | 3 15 15 14 10 20 20 20 18 18 20 18 20 19 20 4 Class Distribution -------------------- 39% | Gunner 23% | Mutant 17% | Tank 6% | Scavenger-Gunner 4% | Scavenger-Tank Dominant Class ---------------- Mutant | -10/Materials Mutant | -10/Mines Scavenger-Tank | -9/Materials Tank | -9/Mines Tank | -8/Materials Gunner | -8/Storage Gunner | -7/Factory Gunner | -7/Lower Caves Gunner | -7/Lower Caves Gunner | -7/Zion Gunner | -6/Proximity Caves Scavenger-Gunner | -6/Factory Gunner | -6/Lower Caves Gunner | -6/Lower Caves Mutant | -6/Data Miner Resources | -11 -10 -10 -9 -9 -8 -8 -7 -7 -7 -7 -6 -6 -6 -6 -6 ----------- Run | Scr Mat Min Mat Min Mat Sto Fac Low Low Zio Pro Fac Low Low Dat Matter Collected 6133 | 286 161 . 404 253 1771 1336 587 55 . 50 245 745 150 70 20 Remotely 768 | . . . . . 311 457 . . . . . . . . . Salvage Created 8483 | 149 525 35 630 268 1692 915 925 603 . 65 871 1563 114 . 128 Parts 408 | 9 37 7 41 21 94 50 36 19 . 1 40 43 6 . 4 Haulers Intercepted 15 | . 2 . 2 . 5 4 1 . . . . 1 . . . Recyclers Shooed 9 | . 1 . . . 2 4 . . . . . 2 . . . Parts Field Recycled . | . . . . . . . . . . . . . . . . Retrieved Matter . | . . . . . . . . . . . . . . . . Parts Self-Destructed 68 | . . . . . . . . 18 1 3 41 . 5 . . Prevented 13 | . . . . . . . . . . . 13 . . . . Kills | -11 -10 -10 -9 -9 -8 -8 -7 -7 -7 -7 -6 -6 -6 -6 -6 ------- Run | Scr Mat Min Mat Min Mat Sto Fac Low Low Zio Pro Fac Low Low Dat Combat Hostiles Destroyed 178 | . 14 3 11 15 40 21 16 12 . . 23 19 2 . 2 Melee 1 | . . . . . . . . . . . . . . . 1 Guns 68 | . 14 3 11 7 7 . 4 11 . . 5 4 2 . . Cannons 70 | . . . . 1 27 18 10 . . . 1 12 . . 1 AOE 33 | . . . . 7 6 3 1 . . . 16 . . . . Classes Destroyed 22 | 2 6 . 2 1 4 2 2 2 . . . . 1 . . Worker 11 | . . . 1 . 5 3 . . . . . 2 . . . Builder 9 | . 2 . 1 . 1 1 . . . . . 4 . . . Tunneler 3 | 2 . . . . . . 1 . . . . . . . . Hauler 15 | . 2 . 2 . 5 4 1 . . . . 1 . . . Recycler 12 | 1 . . 1 . 1 . 3 . . . . 6 . . . Operator 4 | . 1 . . . 2 . 1 . . . . . . . . Drone 1 | . . . . . . . 1 . . . . . . . . Watcher 7 | . 1 . 1 . 2 1 2 . . . . . . . . Swarmer 36 | . 6 3 4 8 4 . 3 1 . . 7 . . . . Grunt 80 | . 8 . 2 5 21 11 6 6 . . 7 14 . . . Brawler 3 | . . . . . 1 . . . . . 2 . . . . Duelist 6 | . . . . . 2 . . 2 . . 2 . . . . Protector 2 | . . . . . . 1 . . . . 1 . . . . Sentry 29 | . . . 5 . 9 8 3 1 . . 1 2 . . . Demolisher 2 | . . . . 2 . . . . . . . . . . . Specialist 3 | . . . . . 2 . . . . . 1 . . . . Hunter 3 | . . . . . . 1 . . . . 2 . . . . Programmer 8 | . . . . . . . 4 . . . . 3 1 . . Heavy 1 | . . . . . 1 . . . . . . . . . . Behemoth 1 | . . . . . . . . 1 . . . . . . . Enhanced Grunt 2 | . . . . . . . . . . . . . . . 2 Thief 1 | . . . . . . . . 1 . . . . . . . Mutant 1 | . . . . . . . . . . . . . 1 . . Best Kill Streak 14 | 3 3 3 3 8 7 8 7 6 . . 14 7 1 . 1 Combat Bots Only 14 | . 3 3 3 8 6 5 7 6 . . 14 4 1 . 1 Max Kills in Single Turn 8 | 1 2 2 2 3 3 2 2 2 . . 8 2 1 . 1 Gunslinging 1 | . 1 1 . 1 . . . 1 . . . . . . . Exploded 8 | . . . . 3 3 2 1 . . . 8 . . . . Melee 1 | . . . . . . . . . . . . . . . 1 Uniques/NPCs Destroyed 1 | . . . . . . . . . . . . . . . 1 Data Miner (-6/Data Miner) Combat | -11 -10 -10 -9 -9 -8 -8 -7 -7 -7 -7 -6 -6 -6 -6 -6 -------- Run | Scr Mat Min Mat Min Mat Sto Fac Low Low Zio Pro Fac Low Low Dat Damage Taken 11570 | . 537 93 296 1036 2394 905 752 948 . . 1314 1201 29 . 2065 Core 1795 | . 122 26 36 131 254 35 54 121 . . 141 78 15 . 782 Absorbed by Shields 228 | . . . . . 12 . . . . . . 169 . . 47 Regen/Repaired (Parts) 1225 | . . . . . 400 633 192 . . . . . . . . Core Remaining (%) 59 | 100 . 40 . 58 . 47 . . . . 54 . . . . Volleys Fired 523 | 8 60 4 38 19 129 64 44 29 . 3 34 67 9 . 15 Largest 3 | 2 2 2 3 3 3 3 3 3 . 1 3 3 3 . 1 Hottest 220 | 40 130 130 150 90 149 132 142 142 . 61 142 220 220 . 60 Shots Fired 1160 | 16 118 8 107 49 289 118 114 86 . 3 78 143 16 . 15 Gun 652 | 16 117 8 104 40 76 . 63 86 . 3 64 62 11 . 2 Cannon 466 | . . . . 5 201 115 51 . . . 6 77 5 . 6 Launcher 33 | . . . . 4 7 3 . . . . 8 4 . . 7 Special 9 | . 1 . 3 . 5 . . . . . . . . . . Kinetic 756 | 16 61 . 89 45 275 115 61 . . . 6 77 5 . 6 Thermal 369 | . 57 8 18 . 7 . 53 86 . 3 64 62 11 . . Explosive 10 | . . . . 4 2 . . . . . 3 . . . 1 Electromagnetic 25 | . . . . . 5 3 . . . . 5 4 . . 8 Robot Hit Streak 38 | 5 18 3 12 4 14 14 19 38 . 4 11 31 18 . 9 Robot Miss Streak 17 | 2 7 3 3 3 17 7 9 2 . . 2 15 2 . 3 Penetration Max 1 | . . . . . . 1 . . . . . 1 . . . Secondary Targets 11 | . 3 1 3 1 . . . 3 . . . . . . . Max Gunslinging Chain 2 | . 1 1 1 1 . . . 2 . . . . . . . Shots Hit Robots 794 | 12 71 4 65 24 190 78 87 72 . 2 55 118 8 . 8 Core Hits 605 | 7 27 3 26 22 145 73 70 27 . 1 73 93 5 . 33 Critical Kills . | . . . . . . . . . . . . . . . . Critical Parts Destroyed . | . . . . . . . . . . . . . . . . Critical Strikes 33 | . 2 . 1 . 3 5 6 4 . . 5 7 . . . Burn 20 | . 2 . 1 . . . 5 4 . . 3 5 . . . Blast 13 | . . . . . 3 5 1 . . . 2 2 . . . Melee Attacks 8 | . . . . . . . . . . . . . . 5 3 Impact . | . . . . . . . . . . . . . . . . Slashing . | . . . . . . . . . . . . . . . . Piercing 8 | . . . . . . . . . . . . . . 5 3 Sneak Attacks 1 | . . . . . . . . . . . . . . . 1 Combat Hostiles . | . . . . . . . . . . . . . . . . Follow-up Attacks . | . . . . . . . . . . . . . . . . Damage Inflicted 22927 | 108 912 86 983 901 4731 2867 2307 1490 . 44 2750 4545 174 . 1029 Guns 8367 | 108 906 66 960 414 916 . 935 1490 . 44 894 1444 174 . 16 Cannons 10053 | . . . . 29 3308 2535 1055 . . . 251 2739 . . 136 Explosions 4239 | . . . . 458 459 284 308 . . . 1605 338 . . 787 Melee 90 | . . . . . . . . . . . . . . . 90 Ramming 178 | . 6 20 23 . 48 48 9 . . . . 24 . . . Kinetic 12657 | 108 304 . 782 443 4184 2535 1175 . . . 251 2739 . . 136 Thermal 6061 | . 602 66 178 . 40 42 1087 1490 . 44 894 1444 174 . . Explosive 2374 | . . . . 458 214 . . . . . 1082 . . . 620 Electromagnetic 1567 | . . . . . 245 242 36 . . . 523 338 . . 183 Impact . | . . . . . . . . . . . . . . . . Slashing . | . . . . . . . . . . . . . . . . Piercing 90 | . . . . . . . . . . . . . . . 90 Highest Corruption 11 | . . . . . . . 2 2 1 1 11 1 1 . . Average Corruption 1 | . . . . . . . 1 1 1 1 1 1 1 . . Corruption Purged 3 | . . . . . . . . 1 . . . . 2 . . Corruption Blocked . | . . . . . . . . . . . . . . . . Effects 32 | . . . . . . . 15 6 2 2 4 1 2 . . Message Errors 11 | . . . . . . . 4 1 2 1 2 . 1 . . Matter Fused 5 | . . . . . . . 5 . . . . . . . . Heat Flow Errors 5 | . . . . . . . 2 2 . . . . 1 . . Energy Discharges 5 | . . . . . . . . 3 . . 2 . . . . Data Loss (minor) 3 | . . . . . . . 2 . . 1 . . . . . Data Loss (major) 2 | . . . . . . . 2 . . . . . . . . Misfires 1 | . . . . . . . . . . . . 1 . . . Overload Shots 1 | . . . . . . . . . . . 1 . . . . Overflow Damage 590 | . . . . 6 144 123 184 . . . . 133 . . . Projectiles 465 | . . . . . 115 117 100 . . . . 133 . . . Explosions 118 | . . . . 6 22 6 84 . . . . . . . . Melee 7 | . . . . . 7 . . . . . . . . . . Knockbacks 106 | . . . . . 31 32 14 . . . . 29 . . . Impact 3 | . . . . . 1 1 . . . . . 1 . . . Kinetic 98 | . . . . . 30 28 14 . . . . 26 . . . Secondary 5 | . . . . . . 3 . . . . . 2 . . . Self-Inflicted Damage 105 | . . . . 11 . . . . . . 91 3 . . . Shots 6 | . . . . 1 . . . . . . 5 . . . . Rammed 25 | . 1 4 3 . 5 7 1 . . . . 4 . . . Targets Rammed 28 | . 2 4 4 . 5 8 1 . . . . 4 . . . Kicked . | . . . . . . . . . . . . . . . . Crushed 3 | . 1 . 1 . . 1 . . . . . . . . . Highest Temperature 340 | . 264 117 240 213 340 231 260 252 . 16 198 239 108 . . Average Temperature 69 | . 79 50 72 59 59 52 59 80 . 8 91 90 50 . . Received Heat Transfer 2828 | . 168 . 93 132 768 522 111 240 . . 293 501 . . . Effects 1 | . . . . . 1 . . . . . . . . . . Energy Bleed 1 | . . . . . 1 . . . . . . . . . . Siege Activations . | . . . . . . . . . . . . . . . . Robots Corrupted 2 | . . . . . . . . . . . . 2 . . . Combat Hostiles 2 | . . . . . . . . . . . . 2 . . . Parts Fried 10 | . . . . . . 2 . . . . 4 4 . . . Impact Corruptions 1 | . . . . . 1 . . . . . . . . . . Robots Melted 5 | . . . . . . . 1 1 . . 1 2 . . . Combat Hostiles 4 | . . . . . . . 1 1 . . 1 1 . . . Parts Melted 35 | . 2 . 4 . 1 . 5 10 . . 9 4 . . . Heat Transferred 11760 | . 1517 148 481 . 74 90 2026 2960 . 74 1887 2273 230 . . Parts Sabotaged . | . . . . . . . . . . . . . . . . Parts Stolen . | . . . . . . . . . . . . . . . . Parts Stripped . | . . . . . . . . . . . . . . . . Power Chain Reactions 3 | . . . . . 1 1 . . . . 1 . . . . Missiles Intercepted . | . . . . . . . . . . . . . . . . Alert | -11 -10 -10 -9 -9 -8 -8 -7 -7 -7 -7 -6 -6 -6 -6 -6 ------- Run | Scr Mat Min Mat Min Mat Sto Fac Low Low Zio Pro Fac Low Low Dat Peak Influence 710 | 15 234 163 267 337 670 598 533 . . . . 710 . . . Initial 271 | . 9 58 . 79 . 266 271 . . . . 144 . . . Average 230 | 5 94 64 130 108 289 376 346 . . . . 329 . . . Maximum Alert Level 3 | . 1 . 1 1 2 2 2 . . . . 3 . . . Low Security (%) 53 | 100 99 100 74 83 42 4 13 . . . . 46 . . . Level 1 26 | . . . 25 16 28 62 44 . . . . 11 . . . Level 2 19 | . . . . . 28 32 41 . . . . 39 . . . Level 3 . | . . . . . . . . . . . . 1 . . . Level 4 . | . . . . . . . . . . . . . . . . Level 5 . | . . . . . . . . . . . . . . . . High Security . | . . . . . . . . . . . . . . . . Max Security . | . . . . . . . . . . . . . . . . Squads Dispatched 31 | . 4 1 2 . 6 2 7 . . . 1 8 . . . Investigation 9 | . 1 1 1 . 3 . 2 . . . . 1 . . . Extermination 6 | . . . . . . . 3 . . . . 3 . . . Reinforcement 12 | . 3 . 1 . 3 . 2 . . . . 3 . . . Assault 4 | . . . . . . 2 . . . . 1 1 . . . Garrison . | . . . . . . . . . . . . . . . . Intercept . | . . . . . . . . . . . . . . . . Searches Triggered . | . . . . . . . . . . . . . . . . Construction Impeded 2 | . . . . . . . . . . . . 2 . . . Haulers Reinforced 1 | . . . . . . . . . . . . 1 . . . Active Scanning Responses . | . . . . . . . . . . . . . . . . Cargo Convoy Interrupts . | . . . . . . . . . . . . . . . . Stealth | -11 -10 -10 -9 -9 -8 -8 -7 -7 -7 -7 -6 -6 -6 -6 -6 --------- Run | Scr Mat Min Mat Min Mat Sto Fac Low Low Zio Pro Fac Low Low Dat Distress Signals 6 | . 1 . 1 . . 2 1 . . . . 1 . . . Communications Jammed . | . . . . . . . . . . . . . . . . Distress Signals . | . . . . . . . . . . . . . . . . Times Spotted 278 | . 23 4 24 12 52 36 28 13 . . 36 44 2 . 4 Peak Tracking Total 12 | . 4 3 5 4 6 8 7 7 . . 12 8 1 . 4 Tactical Retreats 16 | . 2 . . . 1 2 3 . . . . 8 . . . Traps | -11 -10 -10 -9 -9 -8 -8 -7 -7 -7 -7 -6 -6 -6 -6 -6 ------- Run | Scr Mat Min Mat Min Mat Sto Fac Low Low Zio Pro Fac Low Low Dat Traps Triggered 7 | . . . . . 1 . 4 . . . . 2 . . . Indirectly 4 | . . . . . 1 . 3 . . . . . . . . Trap Hack Attempts . | . . . . . . . . . . . . . . . . Triggered . | . . . . . . . . . . . . . . . . Disarmed . | . . . . . . . . . . . . . . . . Reprogrammed . | . . . . . . . . . . . . . . . . Reused . | . . . . . . . . . . . . . . . . Traps Extracted . | . . . . . . . . . . . . . . . . Installed . | . . . . . . . . . . . . . . . . Triggered 1 | . . . . . . . . . . . . . 1 . . Machines | -11 -10 -10 -9 -9 -8 -8 -7 -7 -7 -7 -6 -6 -6 -6 -6 ---------- Run | Scr Mat Min Mat Min Mat Sto Fac Low Low Zio Pro Fac Low Low Dat Machines Disabled 21 | . 3 1 . . 2 3 10 . . . 1 1 . . . Max in Single Turn 4 | . 1 . . . 1 1 4 . . . 1 1 . . . Garrison Access 4 | . . . . . 1 1 1 . . . . 1 . . . Machines Sabotaged . | . . . . . . . . . . . . . . . . Garrisons Compromised . | . . . . . . . . . . . . . . . . Overloaded Fab Kills . | . . . . . . . . . . . . . . . . Hacking | -11 -10 -10 -9 -9 -8 -8 -7 -7 -7 -7 -6 -6 -6 -6 -6 --------- Run | Scr Mat Min Mat Min Mat Sto Fac Low Low Zio Pro Fac Low Low Dat Machines Accessed 66 | . 5 2 7 . 13 13 13 1 . . . 3 1 4 4 Terminals 39 | . 4 1 7 . 9 9 8 . . . . 1 . . . Fabricators 2 | . . . . . . . 1 . . . . 1 . . . Repair Stations 6 | . . . . . 2 2 2 . . . . . . . . Recycling Units 4 | . 1 . . . 1 1 1 . . . . . . . . Scanalyzers . | . . . . . . . . . . . . . . . . Garrison Access 4 | . . . . . 1 1 1 . . . . 1 . . . Total Hacks 201 | . 25 5 25 . 38 34 33 1 . . . 3 1 9 27 Successful 142 | . 12 3 18 . 25 27 16 1 . . . 3 1 9 27 Failed 58 | . 12 2 7 . 13 7 17 . . . . . . . . Catastrophic 5 | . . . . . 3 . 2 . . . . . . . . Database Lockouts 1 | . 1 . . . . . . . . . . . . . . Manual 88 | . 21 4 14 . 15 11 11 . . . 1 11 . . . Terminals 123 | . 24 4 25 . 30 19 20 . . . . 1 . . . Fabricators 3 | . . . . . . . 2 . . . . 1 . . . Repair Stations 23 | . . . . . 6 11 6 . . . . . . . . Recycling Units 7 | . 1 . . . 1 2 3 . . . . . . . . Scanalyzers . | . . . . . . . . . . . . . . . . Garrison Access 6 | . . . . . 1 2 2 . . . . 1 . . . Terminal Hacks 92 | . 6 3 13 . 11 10 10 1 . . . 1 1 9 27 Record 17 | . . . . . . . . . . . . . . 6 11 Part Schematic 13 | . . 2 1 . . . . . . . . . . . 10 Robot Schematic 3 | . . . . . . . . . . . . . . . 3 Robot Analysis 8 | . 2 . 3 . 2 1 . . . . . . . . . Prototype ID Bank 15 | . 2 . 3 . 4 1 2 . . . . . . . 3 Open Door 9 | . . 1 . . . 3 . 1 . . . . 1 3 . Open DSF 2 | . . . . . . . 1 . . . . 1 . . . Branch Access Points 3 | . . . 1 . 1 . 1 . . . . . . . . Machine Index 1 | . . . . . . 1 . . . . . . . . . Terminal Index 3 | . 1 . 1 . . . 1 . . . . . . . . Repair Station Index 1 | . . . . . 1 . . . . . . . . . . Alert Level 2 | . . . . . . 1 1 . . . . . . . . Unreport Threat 4 | . . . . . 1 1 2 . . . . . . . . Locate Traps 6 | . 1 . 1 . 1 2 1 . . . . . . . . Hauler Manifests 4 | . . . 2 . 1 . 1 . . . . . . . . Zone Layout 1 | . . . 1 . . . . . . . . . . . . Fabricator Hacks 1 | . . . . . . . . . . . . 1 . . . Build 1 | . . . . . . . . . . . . 1 . . . Repair Station Hacks 20 | . . . . . 6 11 3 . . . . . . . . Scan Component 11 | . . . . . 3 6 2 . . . . . . . . Repair 9 | . . . . . 3 5 1 . . . . . . . . Recycling Unit Hacks . | . . . . . . . . . . . . . . . . Scanalyzer . | . . . . . . . . . . . . . . . . Garrison Access Hacks 2 | . . . . . 1 1 . . . . . . . . . Seal Access 2 | . . . . . 1 1 . . . . . . . . . Unauthorized Hacks 27 | . 6 . 5 . 7 5 3 . . . . 1 . . . Terminals 20 | . 5 . 5 . 6 4 . . . . . . . . . Track 2 | . . . 1 . . 1 . . . . . . . . . Assimilate 5 | . 3 . 1 . 1 . . . . . . . . . . Botnet 8 | . 1 . 2 . 3 2 . . . . . . . . . Disrupt 1 | . . . . . . 1 . . . . . . . . . Operators 4 | . 1 . 1 . 2 . . . . . . . . . . Fabricators 2 | . . . . . . . 2 . . . . . . . . Liberate 1 | . . . . . . . 1 . . . . . . . . Haulers 1 | . . . . . . . 1 . . . . . . . . Repair Stations . | . . . . . . . . . . . . . . . . Recycling Units 3 | . 1 . . . 1 1 . . . . . . . . . Mask 1 | . . . . . . 1 . . . . . . . . . Tunnel 2 | . 1 . . . 1 . . . . . . . . . . Scanalyzers . | . . . . . . . . . . . . . . . . Garrison Access 2 | . . . . . . . 1 . . . . 1 . . . Jam 2 | . . . . . . . 1 . . . . 1 . . . Data Cores Recovered . | . . . . . . . . . . . . . . . . Used . | . . . . . . . . . . . . . . . . Hacking Detections 40 | . 4 1 4 . 11 8 11 . . . . 1 . . . Full Trace Events 5 | . . . 1 . 2 1 1 . . . . . . . . Feedback Events . | . . . . . . . . . . . . . . . . Feedback Blocked . | . . . . . . . . . . . . . . . . Robot Schematics Acquired 6 | . . . . . . . . . . 3 . . . . 3 Robots Built . | . . . . . . . . . . . . . . . . Authchips . | . . . . . . . . . . . . . . . . Time . | . . . . . . . . . . . . . . . . Total Robot Build Rating . | . . . . . . . . . . . . . . . . Part Schematics Acquired 29 | . . 2 1 . . . . . . 16 . . . . 10 Parts Built 1 | . . . . . . . . . . . . 1 . . . Authchips . | . . . . . . . . . . . . . . . . Time 53 | . . . . . . . . . . . . 53 . . . Total Part Build Rating 6 | . . . . . . . . . . . . 6 . . . Parts Repaired 9 | . . . . . 3 5 1 . . . . . . . . Time 330 | . . . . . 102 190 38 . . . . . . . . Parts Recycled . | . . . . . . . . . . . . . . . . Recycled Matter . | . . . . . . . . . . . . . . . . Retrieved Matter . | . . . . . . . . . . . . . . . . Retrieved Components . | . . . . . . . . . . . . . . . . Parts Scanalyzed . | . . . . . . . . . . . . . . . . Part Schematics Acquired . | . . . . . . . . . . . . . . . . Parts Damaged . | . . . . . . . . . . . . . . . . Bothacking | -11 -10 -10 -9 -9 -8 -8 -7 -7 -7 -7 -6 -6 -6 -6 -6 ------------ Run | Scr Mat Min Mat Min Mat Sto Fac Low Low Zio Pro Fac Low Low Dat Used RIF Installer . | . . . . . . . . . . . . . . . . Robots Hacked . | . . . . . . . . . . . . . . . . Non-combat . | . . . . . . . . . . . . . . . . Combat . | . . . . . . . . . . . . . . . . Robot Hacks Applied . | . . . . . . . . . . . . . . . . Relay Couplers Released . | . . . . . . . . . . . . . . . . Fabnet Peak Effective % . | . . . . . . . . . . . . . . . . Robots Rewired 4 | . . . . . . . . 2 . . 2 . . . . Allies Hacked 2 | . . . . . . . . . . . 1 1 . . . Hacks Repelled . | . . . . . . . . . . . . . . . . Allies | -11 -10 -10 -9 -9 -8 -8 -7 -7 -7 -7 -6 -6 -6 -6 -6 -------- Run | Scr Mat Min Mat Min Mat Sto Fac Low Low Zio Pro Fac Low Low Dat Total Allies 15 | . 1 2 . . 1 2 . 2 . 4 2 1 . . . Largest Group 6 | . 1 2 2 . 1 2 . 2 2 6 6 2 . . . Highest-Rated Group 219 | . 10 39 39 . 10 62 . 64 64 219 215 40 . . . Highest-Rated Ally 41 | . 10 31 31 . 10 31 . 32 32 41 41 27 . . . Zionite Dispatches 1 | . . . . . . . . . . . . 1 . . . Thermal Resupply 1 | . . . . . . . . . . . . 1 . . . Total Orders 17 | . . . . . . . 4 . . . . 2 4 7 . DROP 1 | . . . . . . . . . . . . 1 . . . EXPLORE 12 | . . . . . . . 4 . . . . . 4 4 . RETURN 4 | . . . . . . . . . . . . 1 . 3 . Ally Attacks 136 | . . 6 18 . . 27 . . . . 70 15 . . . Total Damage 3136 | . . 43 184 . . 484 . . . . 2125 300 . . . Kills 24 | . . 2 4 . . 4 . . . . 13 1 . . . Allies Corrupted 1 | . 1 . . . . . . . . . . . . . . Allies Melted . | . . . . . . . . . . . . . . . . Intel | -11 -10 -10 -9 -9 -8 -8 -7 -7 -7 -7 -6 -6 -6 -6 -6 ------- Run | Scr Mat Min Mat Min Mat Sto Fac Low Low Zio Pro Fac Low Low Dat Robot Analysis Total 136 | . 2 . 3 . 2 1 . . . . . . . . 128 Derelict Logs Recovered 14 | . . 1 . 2 . . . 1 1 2 2 . 3 2 . Drone Launches 23 | . . . . . . 14 . . . . . 1 4 4 . Drone Recoveries 7 | . . . . . . . . . . . . 1 2 4 . Zionite Intel Received 2 | . . . . . . . . . . . . 2 . . . Branch Access 1 | . . . . . . . . . . . . 1 . . . Prototype Stockpiles 1 | . . . . . . . . . . . . 1 . . . Exploration | -11 -10 -10 -9 -9 -8 -8 -7 -7 -7 -7 -6 -6 -6 -6 -6 ------------- Run | Scr Mat Min Mat Min Mat Sto Fac Low Low Zio Pro Fac Low Low Dat Turns Passed 19249 | 74 1030 984 1173 2043 2091 1589 1862 759 326 1614 2009 1129 1047 1286 233 Spaces Moved 9570 | 47 674 601 513 614 913 723 841 380 197 959 1009 523 691 745 140 Core 16 | 6 . . . . . . . . . . . . . . 10 Treads 7182 | . 247 601 513 614 805 723 841 380 197 959 1009 293 . . . Legs . | . . . . . . . . . . . . . . . . Wheels 2372 | 41 427 . . . 108 . . . . . . 230 691 745 130 Hover . | . . . . . . . . . . . . . . . . Flight . | . . . . . . . . . . . . . . . . Fastest Speed 50 | 50 80 160 160 240 105 163 163 166 166 166 160 115 115 130 50 Average Speed 163 | 86 110 160 193 240 158 163 187 166 166 166 182 158 119 130 123 Slowest Speed 320 | 100 160 160 240 240 250 163 246 166 166 166 320 240 130 130 130 Overloaded Moves . | . . . . . . . . . . . . . . . . Propulsion Burnouts . | . . . . . . . . . . . . . . . . Robots Hopped . | . . . . . . . . . . . . . . . . Cave-ins Triggered . | . . . . . . . . . . . . . . . . Exploration Rate (%) 67 | 4 72 99 63 96 83 82 31 50 42 89 87 14 87 98 80 Regions Visited 15 Branch Regions 10 Pre-discovered Areas 28 | . 1 . . . 1 . . . . 3 . . 1 . 22 Known Exits Taken 5 | . . . 1 . 1 . 1 1 . . . 1 . . . Unknown Exits Taken 10 | 1 1 1 . 1 . 1 . . 1 1 1 . 1 1 . Scrap Searched 19 | . . 1 . 1 . . . 2 1 5 3 . 3 3 . Spaces Dug 34 | . 1 . 2 10 7 4 3 . . . 1 . 5 1 . Terrain Destroyed 228 | . 1 . 3 56 40 24 17 . . . 50 13 7 1 16 Melee 1 | . . . . . . . . . . . . . . 1 . Projectile 79 | . 1 . 3 4 24 19 5 . . . 2 13 7 . 1 AOE 148 | . . . . 52 16 5 12 . . . 48 . . . 15 Terrain Rammed . | . . . . . . . . . . . . . . . . Walls Destroyed . | . . . . . . . . . . . . . . . . Machines Disabled . | . . . . . . . . . . . . . . . . Actions | -11 -10 -10 -9 -9 -8 -8 -7 -7 -7 -7 -6 -6 -6 -6 -6 --------- Run | Scr Mat Min Mat Min Mat Sto Fac Low Low Zio Pro Fac Low Low Dat Total 12129 | 63 854 618 612 1145 1287 998 1034 441 196 978 1108 668 891 1054 182 Wait 1530 | . 81 . 12 503 154 136 106 6 . 5 13 45 176 292 1 Move 9555 | 46 673 600 512 613 912 722 840 379 196 958 1008 522 690 744 140 Hop . | . . . . . . . . . . . . . . . . Pick Up 107 | 2 18 5 9 1 23 17 10 . . 3 6 6 1 3 3 Fast Attach 58 | 6 4 . 2 . 15 4 5 2 . 3 5 7 2 . 3 Attach 61 | . 3 . 2 5 10 9 9 2 . . 2 7 2 3 7 Detach 14 | . 1 . . . 3 1 4 . . . . 3 1 1 . Swap 86 | 1 4 . 14 4 20 13 4 2 . 2 7 3 7 4 1 Drop 104 | . 8 5 19 . 16 17 11 . . 4 6 4 3 2 9 Fire 523 | 8 60 4 38 19 129 64 44 29 . 3 34 67 9 . 15 Melee 8 | . . . . . . . . . . . . . . 5 3 Ram 1 | . . . . . . . . . . . . 1 . . . Kick . | . . . . . . . . . . . . . . . . Crush 27 | . 2 4 4 . 5 8 1 . . . . 3 . . . Escape Stasis . | . . . . . . . . . . . . . . . . Rewire 48 | . . . . . . . . 21 . . 27 . . . . Trap . | . . . . . . . . . . . . . . . . Miscellaneous 7 | . . . . . . 7 . . . . . . . . . Route ------- -11/Scrapyard -10/Materials (discovered 4 exits: *Mat x3 / *Min) -10/Mines (discovered 2 exits: *Mat x2) -9/Materials (discovered 3 exits: *Mat x2 / *Min) -9/Mines (discovered 3 exits: *Mat / [*Exi] / [*Zio]) -8/Materials (discovered 2 exits: *Fac / *Sto) -8/Storage -7/Factory (discovered 3 exits: *Fac / *Low x2) -7/Lower Caves -7/Lower Caves -7/Zion -6/Proximity Caves -6/Factory (discovered 4 exits: Fac x2 / *Low x2) -6/Lower Caves -6/Lower Caves (discovered 2 exits: *Fac / *Dat) -6/Data Miner (discovered 1 exit: [*Pro]) History --------- Turn | Location | Event 11 | -11/Scrapyard | Discovered new exit (range 16) 75 | -11/Scrapyard | Entered Materials 196 | -10/Materials | Discovered new exit (range 11) 317 | -10/Materials | Build established: Mutant 540 | -10/Materials | Discovered new exit (range 5) 622 | -10/Materials | Discovered new exit (range 15) 804 | -10/Materials | Discovered new exit (range 15) 921 | -10/Materials | Central database locked down 1105 | -10/Materials | Entered Mines 1128 | -10/Mines | Core integrity fell below 50% 1135 | -10/Mines | Discovered new exit (range 3) 1222 | -10/Mines | Learned Materials stockpile data 1385 | -10/Mines | Found a hidden stash of uninstalled traps 1640 | -10/Mines | Discovered new exit (range 16) 1732 | -10/Mines | Met a Derelict shopkeep closing up shop 2089 | -10/Mines | Entered Materials 2089 | -9/Materials | Accompanied by 2 allies 2089 | -9/Materials | Evolved 2 slots: Utility x1, Weapon x1 2094 | -9/Materials | Led the pair of lost Derelicts to an unsafe place 2278 | -9/Materials | Identified exit to Mines 2482 | -9/Materials | Discovered new exit (range 16) 2686 | -9/Materials | Build established: Scavenger-Tank 2861 | -9/Materials | Discovered new exit (range 14) 3262 | -9/Materials | Entered Mines 3308 | -9/Mines | Learned location of 1 exit from Lower Caves 3345 | -9/Mines | Destroyed 8 combat bots 3357 | -9/Mines | Assembled infested the area 3442 | -9/Mines | Build established: Tank 4004 | -9/Mines | Learned Materials garrison access intel 4169 | -9/Mines | Received a Rocket Launcher from a helpful Derelict 4260 | -9/Mines | Lost 6 parts (1n2u3w) 4586 | -9/Mines | Discovered new exit (range 10) 4961 | -9/Mines | A Derelict revealed a hidden shortcut to a safe place 5058 | -9/Mines | Deemed a non-threat by the Exiles lab entrance 5061 | -9/Mines | Discovered new exit (range 5) 5305 | -9/Mines | Entered Materials 5305 | -8/Materials | Evolved 2 slots: Propulsion x1, Utility x1 5306 | -8/Materials | Loaded intel: 1 garrison access location 5472 | -8/Materials | Lost 3 parts (1n1u1w) 5605 | -8/Materials | Lost 4 parts (1p1n2w) 6063 | -8/Materials | Repaired Arm. Treads 6102 | -8/Materials | Repaired Hvy. Assault Cannon 6531 | -8/Materials | Repaired Lgt. Armor Plating 6642 | -8/Materials | Identified exit to Storage 7096 | -8/Materials | Discovered new exit (range 3) 7396 | -8/Materials | Entered Storage 7716 | -8/Storage | Repaired Med. Treads? 7769 | -8/Storage | Repaired Arm. Treads 7806 | -8/Storage | Repaired Cooling System 7847 | -8/Storage | Repaired Flak Cannon? 8113 | -8/Storage | Discovered new exit (range 16) 8526 | -8/Storage | Met a pair of Derelict thieves 8669 | -8/Storage | Core integrity fell below 50% 8686 | -8/Storage | Repaired Hvy. Assault Cannon 8956 | -8/Storage | Build established: Gunner 8985 | -8/Storage | Entered Factory 8985 | -7/Factory | Accompanied by 14 allies 8985 | -7/Factory | Evolved 2 slots: Utility x2 8994 | -7/Factory | Discovered new exit (range 18) 9143 | -7/Factory | Destroyed 7 combat bots 9813 | -7/Factory | Repaired Hvy. Armor Plating? 9980 | -7/Factory | Build established: Mutant 10208 | -7/Factory | Identified exit to Lower Caves 10314 | -7/Factory | Build established: Gunner 10450 | -7/Factory | Found Prototype Launcher 10450 | -7/Factory | Identified Rocket Array 10847 | -7/Factory | Entered Lower Caves 10848 | -7/Lower Caves | Identified exit to Lower Caves 11334 | -7/Lower Caves | Spotted B-75 Beast 11352 | -7/Lower Caves | Destroyed B-75 Beast 11381 | -7/Lower Caves | Learned 4 Factory zone layouts 11449 | -7/Lower Caves | Attracted the attention of an 0b10 outpost 11606 | -7/Lower Caves | Entered another Lower Caves area 11606 | -7/Lower Caves | Accompanied by 2 allies 11729 | -7/Lower Caves | Learned Factory terminal intel 11895 | -7/Lower Caves | Discovered new exit (range 12) 11932 | -7/Lower Caves | Entered Zion 11932 | -7/Zion | Accompanied by 2 allies 11976 | -7/Zion | Given the Hacking Drone Bay 11976 | -7/Zion | Found Prototype Device 12008 | -7/Zion | Identified Hacking Drone Bay 12113 | -7/Zion | Discovered new exit (range 10) 12248 | -7/Zion | System corruption cleaned by Quarantine Array 12265 | -7/Zion | Learned location of Quarantine (-2) 12314 | -7/Zion | Learned Factory stockpile data 12395 | -7/Zion | Build established: Mutant 12451 | -7/Zion | Found Prototype Launcher 12451 | -7/Zion | Identified Gui. Missile Launcher 12594 | -7/Zion | Learned Factory emergency access door positions 12745 | -7/Zion | Build established: Gunner 12941 | -7/Zion | Learned location of Armory (-4) 12966 | -7/Zion | Found GAL Module 13231 | -7/Zion | Imprinted 13233 | -7/Zion | Declared Zion's savior 13546 | -7/Zion | Entered Proximity Caves 13546 | -6/Proximity Caves | Accompanied by 6 allies 13548 | -6/Proximity Caves | Spotted B-75 Beast 13567 | -6/Proximity Caves | Allies destroyed B-75 Beast 13900 | -6/Proximity Caves | Learned 8 Factory zone layouts 14025 | -6/Proximity Caves | Learned 4 Factory zone layouts 14506 | -6/Proximity Caves | Acquired the password to a Derelict Tinkerer's latest research 14518 | -6/Proximity Caves | Found Prototype Special Weapon 14660 | -6/Proximity Caves | Caught by Unaware searching for contraband prototypes 14819 | -6/Proximity Caves | Lost 3 parts (2n1u) 15019 | -6/Proximity Caves | Attracted the attention of an 0b10 outpost 15031 | -6/Proximity Caves | Discovered new exit (range 12) 15071 | -6/Proximity Caves | Destroyed 14 combat bots 15253 | -6/Proximity Caves | Build established: Scavenger-Gunner 15554 | -6/Proximity Caves | System corruption reached 10% 15555 | -6/Proximity Caves | Entered Factory 15555 | -6/Factory | Accompanied by 2 allies 15555 | -6/Factory | Evolved 2 slots: Propulsion x1, Utility x1 15556 | -6/Factory | Identified exit to Factory 15559 | -6/Factory | Loaded intel: 26 terminal locations 15642 | -6/Factory | Identified exit to DSF 16015 | -6/Factory | Discovered new exit (range 6) 16073 | -6/Factory | Retrieved Zion intel report: Branch Access 16073 | -6/Factory | Identified exit to Lower Caves 16147 | -6/Factory | Spotted B-75 Beast 16300 | -6/Factory | Retrieved Zion intel report: Prototype Stockpiles 16301 | -6/Factory | Zion Thermal Resupply teleported in 16535 | -6/Factory | Fabricated Imp. Component Analysis Suite? 16605 | -6/Factory | First assault squad dispatched 16630 | -6/Factory | Build established: Gunner 16684 | -6/Factory | Entered Lower Caves 17245 | -6/Lower Caves | Learned Factory emergency access door positions 17246 | -6/Lower Caves | Learned Factory non-interactive machine intel 17407 | -6/Lower Caves | Discovered new exit (range 10) 17731 | -6/Lower Caves | Entered another Lower Caves area 17798 | -6/Lower Caves | Discovered exit to Factory (range 9) 17924 | -6/Lower Caves | Build established: Mutant 18345 | -6/Lower Caves | Build established: Gunner 18398 | -6/Lower Caves | Discovered new exit (range 94) 18524 | -6/Lower Caves | Learned Factory emergency access door positions 18702 | -6/Lower Caves | Learned Factory emergency access door positions 18740 | -6/Lower Caves | Learned location of 1 exit from Factory 18740 | -6/Lower Caves | Learned Extension trap positions 18740 | -6/Lower Caves | Learned Armory emergency access door positions 18740 | -6/Lower Caves | Learned Research security intel 19017 | -6/Lower Caves | Entered Data Miner 19017 | -6/Data Miner | Discovered new exit (range 6) 19037 | -6/Data Miner | Met Data Miner 19075 | -6/Data Miner | Learned location of Section 7 (-2) 19075 | -6/Data Miner | Acquired the access code to Warlord's prototype stash 19094 | -6/Data Miner | Received God Mode back door access code from Data Miner 19189 | -6/Data Miner | Destroyed Data Miner 19192 | -6/Data Miner | Found Prototype Hackware 19193 | -6/Data Miner | Interfaced with the Data Conduit 19197 | -6/Data Miner | Found Prototype Hackware 19236 | -6/Data Miner | Core integrity fell below 50% 19245 | -6/Data Miner | Core integrity fell below 20% 19250 | -6/Data Miner | Destroyed by Enhanced Grunt with Neutron Cannon Last Messages --------------- 19217_ Com. Wheel destroyed. 19218_ Hvy. Assault Cannon destroyed. 19218_ Imp. Medium Treads destroyed. 19218_ Med. Treads destroyed. 19219_ Enhanced Grunt destroyed. 19225_ The unstable cave ceiling collapses. 19228_ Hvy. Flak Cannon destroyed. 19228_ F-cell Engine destroyed. 19230_ The unstable cave ceiling collapses. 19233_ Imp. Lightning Gun destroyed. 19235_ Com. Wheel destroyed. 19236_ Dropped Hcp. Storage Unit. 19238_ Dropped Imp. Spread Laser. 19239_ Dropped Drone Bay. 19239_ Acquired Spear. 19240_ The unstable cave ceiling collapses. 19241_ Dirty Datajack destroyed. 19241_ Adv. Targeting Computer destroyed. 19248_ Enhanced Grunt destroyed. 19250_ Spear destroyed. Map ----- +----------------------------------------------------+ | | | | | | | | | | | | | | | | | | | | | | | | | | | | | | | | | ???????????????????????????????????????????? | | ???????????????????????????????????????????? | | ???????????????????????????????????????????? | | ?????????????????????????#?????????????????? | | ??????????????????????## ##??????????####??? | | ????################# ##???????### #??? | | ???##"""""""""" ## # # # #????## #??? | | ???#""""""""" ; # # ## < ##??? | | ??#"""""""" " #### | | ??#""""" @ | | ??#""""""!* %g!% | | ??#""""""! ![ g | | ??#"""""""[!! | | ??#""""" !!! """"""""""""""#### | | ???""""" &!! ##############??? | | ???#""""" " """ # ##???????????????? | | ???##"""""""" "#######????????????????? | | ????########"## "#??????????????????????? | | ???????????#"### "#??????????????????????? | | ???????????#"### "#??????????????????????? | | ???????????#"## "#??????????????????????? | | ???????????#"## "#??????????????????????? | | ?????????????# "#??????????????????????? | | ?????????????### "#??????????????????????? | | ???????????????# "##?????????????????????? | | ??????????????## ""#?????????????????????? | | ?????????????## ""#?????????????????????? | | ????????#"##"#"X ""#?????????????????????? | | ????????#"""""" "#####?????????????????? | | ????????##""""" X"""""#?????????????????? | | ?????????###"#"X "##"##?????????????????? | | ???????????#"## X""""#??????????????????? | | ??????????????## "##"#??????????????????? | | ???????????????#######??#??????????????????? | +----------------------------------------------------+ Best States ------------- Heat Dissipation 64 Coolant Potential 65 Energy Generation 21 Energy Capacity 500 Matter Stores 300 Matter Capacity 300 Sight Range 20 Terrain Scan Density 10 Armor Coverage 600 Resistance: EM 15 Evasion (%) 44 Targeting Accuracy 16 Recoil Reduction 4 Offensive Hacking 20 Item Schematics ----------------- Huge Storage Unit | -10/Mines | Hacked Hcp. Storage Unit | -10/Mines | Hacked Seismic Detector | -9/Materials | Hacked Imp. Trap Scanner | -7/Zion | Archive Plasma Cannon | -7/Zion | Archive Imp. Shock Absorption System | -7/Zion | Archive Chainsword | -7/Zion | Archive Lyr. Medium Armor Plating | -7/Zion | Archive Med. Reflective Plating | -7/Zion | Archive Remote Shield | -7/Zion | Archive Arm. Huge Wheel | -7/Zion | Archive Focal Shield | -7/Zion | Archive Med. Reactive Plating | -7/Zion | Archive Mak. Trap Scanner | -7/Zion | Archive Hyp. Gauss Rifle | -7/Zion | Archive Gauss Cannon | -7/Zion | Archive Imp. Titanium Leg | -7/Zion | Archive Adv. Signal Interpreter | -7/Zion | Archive Tiamat Missile Launcher | -7/Zion | Archive Combat Drone Bay | -6/Data Miner | Free Lgt. Regenerative Plating | -6/Data Miner | Free Cld. Gravmag System | -6/Data Miner | Free Prc. Energy Filter | -6/Data Miner | Free Cld. Plasma Rifle | -6/Data Miner | Free Imp. Antigrav System | -6/Data Miner | Free Adv. Cryofiber Web | -6/Data Miner | Free Railgun | -6/Data Miner | Free Hardcell Cannon | -6/Data Miner | Free Arm. Heavy Treads | -6/Data Miner | Free Robot Schematics ------------------ S-27 Virus | -7/Zion | Archive K-01 Serf | -7/Zion | Archive W-25 Informer | -7/Zion | Archive Y-54 Guardian | -6/Data Miner | Free E-15 Imp | -6/Data Miner | Free M-22 Extractor | -6/Data Miner | Free Fabricated ------------ Imp. Component Analysis Suite | x1 | -6/Factory | Preloaded Alien Tech Used ----------------- None Achievements -------------- None Challenges ------------ None Game ------ Seed GuidedRecyclingSlayer Manual? 0 Play Time 03:00:24 Cumulative 450.7 hours Start 2022.03.23 @ 09:32:47 End 2022.03.23 @ 22:09:59 Sessions 9 Manual Loads 0 Difficulty Rogue Special Mode None Game No. 149 Rogue 145 Adventurer 4 Explorer 0 Win Type - Total 11 Types 5/2/3/0/0/0/0/1/0 Lore% 79 Gallery% 79 Achievement% 69 Wizard Run 0 Options --------- ASCII 1 Keyboard 0 Movement Arrows Keybinds 0 Fullscreen 1 Font 18/Smallcaps Map View 76x50 Tactical HUD 1 Map Filters NONE Filters NONE Steam 1 RUN: d67d42f2-59f9-4c29-8f79-b76ba2c27354